Workbook

Sheet CÉLKITŰZÉSEK
B1: =TODAY() -> 2017-05-10 | C1: CÉLKITŰZÉSEK | J1: Testmozgás | K1: Étkezés
B2: KEZDÉSI DÁTUM | C2: ÉTKEZÉSI ÉS TESTMOZGÁS NAPLÓ
B3: =KezdőDátum+121 -> 2017-09-08 | C3: ÉTKEZÉSI NAPLÓ
B5: BEFEJEZŐ DÁTUM
B6: 100.00
B7: KEZDŐ SÚLY
B8: 80.00 | C8: TESTMOZGÁS NAPLÓ
B10: VÉGSÚLY
B11: =Kezdősúly-Végsúly -> 20
B12: KITŰZÖTT SÚLYVESZTÉS
B13: =BefejezésiDátum-KezdőDátum -> 121
B14: HÁNY NAP ALATT
B15: =KívántSúly/B13 -> 0.17
B16: NAPI SÚLYVESZTÉS

Sheet ÉTKEZÉS
B1: ÉTKEZÉS | G1: Célkitűzések | H1: Testmozgás
B2: =Alcím -> ÉTKEZÉSI ÉS TESTMOZGÁS NAPLÓ
B3: DÁTUM | C3: IDŐPONT | D3: LEÍRÁS | E3: KALÓRIA | F3: SZÉNHIDRÁT | G3: FEHÉRJE | H3: ZSÍR | I3: MEGJEGYZÉSEK
B4: =KezdőDátum -> 2017-05-10 | C4: 07:00:00 | D4: Kávé | E4: 1 | F4: 0 | G4: 0 | H4: 0 | I4: Reggeli kávé
B5: =KezdőDátum -> 2017-05-10 | C5: 08:00:00 | D5: Bagel | E5: 10 | F5: 10 | G5: 2 | H5: 10 | I5: Könnyű reggeli
B6: =KezdőDátum -> 2017-05-10 | C6: 12:00:00 | D6: Ebéd | E6: 283 | F6: 46 | G6: 18 | H6: 4 | I6: Pulykás szendvics
B7: =KezdőDátum -> 2017-05-10 | C7: 19:00:00 | D7: Vacsora | E7: 500 | F7: 42 | G7: 35 | H7: 25 | I7: Rakott krumpli
B8: =KezdőDátum+1 -> 2017-05-11 | C8: 07:00:00 | D8: Kávé | E8: 1 | F8: 0 | G8: 0 | H8: 0 | I8: Reggeli kávé
B9: =KezdőDátum+1 -> 2017-05-11 | C9: 08:00:00 | D9: Pirítós | E9: 10 | F9: 10 | G9: 2 | H9: 10 | I9: Könnyű reggeli
B10: =KezdőDátum+1 -> 2017-05-11 | C10: 12:00:00 | D10: Ebéd | E10: 189 | F10: 26 | G10: 3 | H10: 8 | I10: Szendvics
B11: =KezdőDátum+1 -> 2017-05-11 | C11: 19:00:00 | D11: Vacsora | E11: 477 | F11: 62 | G11: 14 | H11: 21 | I11: Vacsora
B12: =KezdőDátum+2 -> 2017-05-12 | C12: 07:00:00 | D12: Kávé | E12: 1 | F12: 0 | G12: 0 | H12: 0 | I12: Reggeli kávé
B13: =KezdőDátum+2 -> 2017-05-12 | C13: 08:00:00 | D13: Bagel | E13: 245 | F13: 48 | G13: 10 | H13: 2 | I13: Könnyű reggeli
B14: =KezdőDátum+2 -> 2017-05-12 | C14: 12:00:00 | D14: Ebéd | E14: 247 | F14: 11 | G14: 43 | H14: 5 | I14: Saláta
B15: =KezdőDátum+2 -> 2017-05-12 | C15: 19:00:00 | D15: Vacsora | E15: 456 | F15: 64 | G15: 32 | H15: 22 | I15: Vacsora
B16: =KezdőDátum+3 -> 2017-05-13 | C16: 07:00:00 | D16: Pirítós | E16: 10 | F16: 10 | G16: 2 | H16: 10 | I16: Könnyű reggeli
B17: =KezdőDátum+3 -> 2017-05-13 | C17: 10:00:00 | D17: Kávé | E17: 135 | F17: 12 | G17: 9 | H17: 6 | I17: Latte
B18: =KezdőDátum+3 -> 2017-05-13 | C18: 12:15:00 | D18: Ebéd | E18: 184 | F18: 7 | G18: 5 | H18: 15 | I18: Saláta
B19: =KezdőDátum+5 -> 2017-05-15 | C19: 19:00:00 | D19: Vacsora | E19: 477 | F19: 62 | G19: 14 | H19: 21 | I19: Vacsora

Sheet TESTMOZGÁS
B1: TESTMOZGÁS | F1: Étkezés | G1: Célkitűzések
B2: =Alcím -> ÉTKEZÉSI ÉS TESTMOZGÁS NAPLÓ
B3: DÁTUM | C3: IDŐTARTAM (PERC) | D3: ELÉGETETT KALÓRIA | E3: MEGJEGYZÉSEK
B4: =KezdőDátum+4 -> 2017-05-14 | C4: 30 | D4: 120 | E4: Futópad
B5: =B4+1 -> 2017-05-15 | C5: 60 | D5: 180 | E5: Alacsony intenzitású aerobik
B6: =B5+1 -> 2017-05-16 | C6: 60 | D6: 350 | E6: Intenzív edzés
B7: 2017-05-17 | C7: 30 | D7: 150 | E7: Futópad
B8: 2017-05-18 | C8: 25 | D8: 125 | E8: Futás
B9: 2017-05-19 | C9: 20 | D9: 285 | E9: Futópad
B10: 2017-05-20 | C10: 40 | D10: 205 | E10: Futás
B11: 2017-05-21 | C11: 30 | D11: 335 | E11: Futás
B12: 2017-05-22 | C12: 40 | D12: 175 | E12: Futás
B13: 2017-05-23 | C13: 45 | D13: 325 | E13: Futópad
B14: 2017-05-24 | C14: 40 | D14: 270 | E14: Futás
B15: 2017-05-25 | C15: 20 | D15: 295 | E15: Futópad
B16: 2017-05-26 | C16: 45 | D16: 350 | E16: Futás
B17: 2017-05-27 | C17: 35 | D17: 320 | E17: Futás
B18: 2017-05-28 | C18: 40 | D18: 290 | E18: Futás
B19: =B18+1 -> 2017-05-29 | C19: 25 | D19: 265 | E19: Futópad
B20: 2017-05-30 | C20: 20 | D20: 195 | E20: Futás

Sheet Diagramszámítások (hidden)
B2: ÉTKEZÉSI NAPLÓ DIAGRAM ADATOK
B4: Kezdő sor | C4: =ROW(Étkezés[[#Headers],[DÁTUM]])+1 -> 4 | D4: DÁTUM | E4: NAP | F4: ZSÍR | G4: FEHÉRJE | H4: SZÉNHIDRÁT | I4: KALÓRIA | J4: Szám
B5: Utolsó étkezési bejegyzés | C5: =MATCH(9.99E+307,Étkezés[DÁTUM])+ÉtkezésSorKezdet-1 -> 19 | D5: =IFERROR(IF(INDEX(Étkezés[],ÉtkezésVége-ÉtkezésSorKezdet-J5,1)<>"",INDEX(Étkezés[],ÉtkezésVége-ÉtkezésSorKezdet-J5,1),""),"") -> 2017-05-10 | E5: =UPPER(TEXT(D5,"AAA")) -> SZE | F5: =IFERROR((IF(INDEX(Étkezés[],ÉtkezésVége-ÉtkezésSorKezdet-J5,1)<>"",INDEX(Étkezés[],ÉtkezésVége-ÉtkezésSorKezdet-J5,7),NA())),NA()) -> 3.5 | G5: =IFERROR((IF(INDEX(Étkezés[],ÉtkezésVége-ÉtkezésSorKezdet-J5,1)<>"",INDEX(Étkezés[],ÉtkezésVége-ÉtkezésSorKezdet-J5,6),NA())),NA()) -> 18 | H5: =IFERROR((IF(INDEX(Étkezés[],ÉtkezésVége-ÉtkezésSorKezdet-J5,1)<>"",INDEX(Étkezés[],ÉtkezésVége-ÉtkezésSorKezdet-J5,5),NA())),NA()) -> 46 | I5: =IFERROR((IF(INDEX(Étkezés[],ÉtkezésVége-ÉtkezésSorKezdet-J5,1)<>"",INDEX(Étkezés[],ÉtkezésVége-ÉtkezésSorKezdet-J5,4),NA())),NA()) -> 283 | J5: 12
D6: =IFERROR(IF(INDEX(Étkezés[],ÉtkezésVége-ÉtkezésSorKezdet-J6,1)<>"",INDEX(Étkezés[],ÉtkezésVége-ÉtkezésSorKezdet-J6,1),""),"") -> 2017-05-10 | E6: =UPPER(TEXT(D6,"AAA")) -> SZE | F6: =IFERROR((IF(INDEX(Étkezés[],ÉtkezésVége-ÉtkezésSorKezdet-J6,1)<>"",INDEX(Étkezés[],ÉtkezésVége-ÉtkezésSorKezdet-J6,7),NA())),NA()) -> 25 | G6: =IFERROR((IF(INDEX(Étkezés[],ÉtkezésVége-ÉtkezésSorKezdet-J6,1)<>"",INDEX(Étkezés[],ÉtkezésVége-ÉtkezésSorKezdet-J6,6),NA())),NA()) -> 35 | H6: =IFERROR((IF(INDEX(Étkezés[],ÉtkezésVége-ÉtkezésSorKezdet-J6,1)<>"",INDEX(Étkezés[],ÉtkezésVége-ÉtkezésSorKezdet-J6,5),NA())),NA()) -> 42 | I6: =IFERROR((IF(INDEX(Étkezés[],ÉtkezésVége-ÉtkezésSorKezdet-J6,1)<>"",INDEX(Étkezés[],ÉtkezésVége-ÉtkezésSorKezdet-J6,4),NA())),NA()) -> 500 | J6: 11
D7: =IFERROR(IF(INDEX(Étkezés[],ÉtkezésVége-ÉtkezésSorKezdet-J7,1)<>"",INDEX(Étkezés[],ÉtkezésVége-ÉtkezésSorKezdet-J7,1),""),"") -> 2017-05-11 | E7: CS | F7: =IFERROR((IF(INDEX(Étkezés[],ÉtkezésVége-ÉtkezésSorKezdet-J7,1)<>"",INDEX(Étkezés[],ÉtkezésVége-ÉtkezésSorKezdet-J7,7),NA())),NA()) -> 0 | G7: =IFERROR((IF(INDEX(Étkezés[],ÉtkezésVége-ÉtkezésSorKezdet-J7,1)<>"",INDEX(Étkezés[],ÉtkezésVége-ÉtkezésSorKezdet-J7,6),NA())),NA()) -> 0 | H7: =IFERROR((IF(INDEX(Étkezés[],ÉtkezésVége-ÉtkezésSorKezdet-J7,1)<>"",INDEX(Étkezés[],ÉtkezésVége-ÉtkezésSorKezdet-J7,5),NA())),NA()) -> 0 | I7: =IFERROR((IF(INDEX(Étkezés[],ÉtkezésVége-ÉtkezésSorKezdet-J7,1)<>"",INDEX(Étkezés[],ÉtkezésVége-ÉtkezésSorKezdet-J7,4),NA())),NA()) -> 1 | J7: 10
D8: =IFERROR(IF(INDEX(Étkezés[],ÉtkezésVége-ÉtkezésSorKezdet-J8,1)<>"",INDEX(Étkezés[],ÉtkezésVége-ÉtkezésSorKezdet-J8,1),""),"") -> 2017-05-11 | E8: CS | F8: =IFERROR((IF(INDEX(Étkezés[],ÉtkezésVége-ÉtkezésSorKezdet-J8,1)<>"",INDEX(Étkezés[],ÉtkezésVége-ÉtkezésSorKezdet-J8,7),NA())),NA()) -> 10 | G8: =IFERROR((IF(INDEX(Étkezés[],ÉtkezésVége-ÉtkezésSorKezdet-J8,1)<>"",INDEX(Étkezés[],ÉtkezésVége-ÉtkezésSorKezdet-J8,6),NA())),NA()) -> 2 | H8: =IFERROR((IF(INDEX(Étkezés[],ÉtkezésVége-ÉtkezésSorKezdet-J8,1)<>"",INDEX(Étkezés[],ÉtkezésVége-ÉtkezésSorKezdet-J8,5),NA())),NA()) -> 10 | I8: =IFERROR((IF(INDEX(Étkezés[],ÉtkezésVége-ÉtkezésSorKezdet-J8,1)<>"",INDEX(Étkezés[],ÉtkezésVége-ÉtkezésSorKezdet-J8,4),NA())),NA()) -> 10 | J8: 9
D9: =IFERROR(IF(INDEX(Étkezés[],ÉtkezésVége-ÉtkezésSorKezdet-J9,1)<>"",INDEX(Étkezés[],ÉtkezésVége-ÉtkezésSorKezdet-J9,1),""),"") -> 2017-05-11 | E9: CS | F9: =IFERROR((IF(INDEX(Étkezés[],ÉtkezésVége-ÉtkezésSorKezdet-J9,1)<>"",INDEX(Étkezés[],ÉtkezésVége-ÉtkezésSorKezdet-J9,7),NA())),NA()) -> 8 | G9: =IFERROR((IF(INDEX(Étkezés[],ÉtkezésVége-ÉtkezésSorKezdet-J9,1)<>"",INDEX(Étkezés[],ÉtkezésVége-ÉtkezésSorKezdet-J9,6),NA())),NA()) -> 3 | H9: =IFERROR((IF(INDEX(Étkezés[],ÉtkezésVége-ÉtkezésSorKezdet-J9,1)<>"",INDEX(Étkezés[],ÉtkezésVége-ÉtkezésSorKezdet-J9,5),NA())),NA()) -> 26 | I9: =IFERROR((IF(INDEX(Étkezés[],ÉtkezésVége-ÉtkezésSorKezdet-J9,1)<>"",INDEX(Étkezés[],ÉtkezésVége-ÉtkezésSorKezdet-J9,4),NA())),NA()) -> 189 | J9: 8
D10: =IFERROR(IF(INDEX(Étkezés[],ÉtkezésVége-ÉtkezésSorKezdet-J10,1)<>"",INDEX(Étkezés[],ÉtkezésVége-ÉtkezésSorKezdet-J10,1),""),"") -> 2017-05-11 | E10: CS | F10: =IFERROR((IF(INDEX(Étkezés[],ÉtkezésVége-ÉtkezésSorKezdet-J10,1)<>"",INDEX(Étkezés[],ÉtkezésVége-ÉtkezésSorKezdet-J10,7),NA())),NA()) -> 21 | G10: =IFERROR((IF(INDEX(Étkezés[],ÉtkezésVége-ÉtkezésSorKezdet-J10,1)<>"",INDEX(Étkezés[],ÉtkezésVége-ÉtkezésSorKezdet-J10,6),NA())),NA()) -> 13.5 | H10: =IFERROR((IF(INDEX(Étkezés[],ÉtkezésVége-ÉtkezésSorKezdet-J10,1)<>"",INDEX(Étkezés[],ÉtkezésVége-ÉtkezésSorKezdet-J10,5),NA())),NA()) -> 62 | I10: =IFERROR((IF(INDEX(Étkezés[],ÉtkezésVége-ÉtkezésSorKezdet-J10,1)<>"",INDEX(Étkezés[],ÉtkezésVége-ÉtkezésSorKezdet-J10,4),NA())),NA()) -> 477 | J10: 7
D11: =IFERROR(IF(INDEX(Étkezés[],ÉtkezésVége-ÉtkezésSorKezdet-J11,1)<>"",INDEX(Étkezés[],ÉtkezésVége-ÉtkezésSorKezdet-J11,1),""),"") -> 2017-05-12 | E11: P | F11: =IFERROR((IF(INDEX(Étkezés[],ÉtkezésVége-ÉtkezésSorKezdet-J11,1)<>"",INDEX(Étkezés[],ÉtkezésVége-ÉtkezésSorKezdet-J11,7),NA())),NA()) -> 0 | G11: =IFERROR((IF(INDEX(Étkezés[],ÉtkezésVége-ÉtkezésSorKezdet-J11,1)<>"",INDEX(Étkezés[],ÉtkezésVége-ÉtkezésSorKezdet-J11,6),NA())),NA()) -> 0 | H11: =IFERROR((IF(INDEX(Étkezés[],ÉtkezésVége-ÉtkezésSorKezdet-J11,1)<>"",INDEX(Étkezés[],ÉtkezésVége-ÉtkezésSorKezdet-J11,5),NA())),NA()) -> 0 | I11: =IFERROR((IF(INDEX(Étkezés[],ÉtkezésVége-ÉtkezésSorKezdet-J11,1)<>"",INDEX(Étkezés[],ÉtkezésVége-ÉtkezésSorKezdet-J11,4),NA())),NA()) -> 1 | J11: 6
D12: =IFERROR(IF(INDEX(Étkezés[],ÉtkezésVége-ÉtkezésSorKezdet-J12,1)<>"",INDEX(Étkezés[],ÉtkezésVége-ÉtkezésSorKezdet-J12,1),""),"") -> 2017-05-12 | E12: P | F12: =IFERROR((IF(INDEX(Étkezés[],ÉtkezésVége-ÉtkezésSorKezdet-J12,1)<>"",INDEX(Étkezés[],ÉtkezésVége-ÉtkezésSorKezdet-J12,7),NA())),NA()) -> 1.5 | G12: =IFERROR((IF(INDEX(Étkezés[],ÉtkezésVége-ÉtkezésSorKezdet-J12,1)<>"",INDEX(Étkezés[],ÉtkezésVége-ÉtkezésSorKezdet-J12,6),NA())),NA()) -> 10 | H12: =IFERROR((IF(INDEX(Étkezés[],ÉtkezésVége-ÉtkezésSorKezdet-J12,1)<>"",INDEX(Étkezés[],ÉtkezésVége-ÉtkezésSorKezdet-J12,5),NA())),NA()) -> 48 | I12: =IFERROR((IF(INDEX(Étkezés[],ÉtkezésVége-ÉtkezésSorKezdet-J12,1)<>"",INDEX(Étkezés[],ÉtkezésVége-ÉtkezésSorKezdet-J12,4),NA())),NA()) -> 245 | J12: 5
D13: =IFERROR(IF(INDEX(Étkezés[],ÉtkezésVége-ÉtkezésSorKezdet-J13,1)<>"",INDEX(Étkezés[],ÉtkezésVége-ÉtkezésSorKezdet-J13,1),""),"") -> 2017-05-12 | E13: P | F13: =IFERROR((IF(INDEX(Étkezés[],ÉtkezésVége-ÉtkezésSorKezdet-J13,1)<>"",INDEX(Étkezés[],ÉtkezésVége-ÉtkezésSorKezdet-J13,7),NA())),NA()) -> 5 | G13: =IFERROR((IF(INDEX(Étkezés[],ÉtkezésVége-ÉtkezésSorKezdet-J13,1)<>"",INDEX(Étkezés[],ÉtkezésVége-ÉtkezésSorKezdet-J13,6),NA())),NA()) -> 43 | H13: =IFERROR((IF(INDEX(Étkezés[],ÉtkezésVége-ÉtkezésSorKezdet-J13,1)<>"",INDEX(Étkezés[],ÉtkezésVége-ÉtkezésSorKezdet-J13,5),NA())),NA()) -> 11 | I13: =IFERROR((IF(INDEX(Étkezés[],ÉtkezésVége-ÉtkezésSorKezdet-J13,1)<>"",INDEX(Étkezés[],ÉtkezésVége-ÉtkezésSorKezdet-J13,4),NA())),NA()) -> 247 | J13: 4
D14: =IFERROR(IF(INDEX(Étkezés[],ÉtkezésVége-ÉtkezésSorKezdet-J14,1)<>"",INDEX(Étkezés[],ÉtkezésVége-ÉtkezésSorKezdet-J14,1),""),"") -> 2017-05-12 | E14: P | F14: =IFERROR((IF(INDEX(Étkezés[],ÉtkezésVége-ÉtkezésSorKezdet-J14,1)<>"",INDEX(Étkezés[],ÉtkezésVége-ÉtkezésSorKezdet-J14,7),NA())),NA()) -> 22 | G14: =IFERROR((IF(INDEX(Étkezés[],ÉtkezésVége-ÉtkezésSorKezdet-J14,1)<>"",INDEX(Étkezés[],ÉtkezésVége-ÉtkezésSorKezdet-J14,6),NA())),NA()) -> 32 | H14: =IFERROR((IF(INDEX(Étkezés[],ÉtkezésVége-ÉtkezésSorKezdet-J14,1)<>"",INDEX(Étkezés[],ÉtkezésVége-ÉtkezésSorKezdet-J14,5),NA())),NA()) -> 64 | I14: =IFERROR((IF(INDEX(Étkezés[],ÉtkezésVége-ÉtkezésSorKezdet-J14,1)<>"",INDEX(Étkezés[],ÉtkezésVége-ÉtkezésSorKezdet-J14,4),NA())),NA()) -> 456 | J14: 3
D15: =IFERROR(IF(INDEX(Étkezés[],ÉtkezésVége-ÉtkezésSorKezdet-J15,1)<>"",INDEX(Étkezés[],ÉtkezésVége-ÉtkezésSorKezdet-J15,1),""),"") -> 2017-05-13 | E15: SZO | F15: =IFERROR((IF(INDEX(Étkezés[],ÉtkezésVége-ÉtkezésSorKezdet-J15,1)<>"",INDEX(Étkezés[],ÉtkezésVége-ÉtkezésSorKezdet-J15,7),NA())),NA()) -> 10 | G15: =IFERROR((IF(INDEX(Étkezés[],ÉtkezésVége-ÉtkezésSorKezdet-J15,1)<>"",INDEX(Étkezés[],ÉtkezésVége-ÉtkezésSorKezdet-J15,6),NA())),NA()) -> 2 | H15: =IFERROR((IF(INDEX(Étkezés[],ÉtkezésVége-ÉtkezésSorKezdet-J15,1)<>"",INDEX(Étkezés[],ÉtkezésVége-ÉtkezésSorKezdet-J15,5),NA())),NA()) -> 10 | I15: =IFERROR((IF(INDEX(Étkezés[],ÉtkezésVége-ÉtkezésSorKezdet-J15,1)<>"",INDEX(Étkezés[],ÉtkezésVége-ÉtkezésSorKezdet-J15,4),NA())),NA()) -> 10 | J15: 2
D16: =IFERROR(IF(INDEX(Étkezés[],ÉtkezésVége-ÉtkezésSorKezdet-J16,1)<>"",INDEX(Étkezés[],ÉtkezésVége-ÉtkezésSorKezdet-J16,1),""),"") -> 2017-05-13 | E16: SZO | F16: =IFERROR((IF(INDEX(Étkezés[],ÉtkezésVége-ÉtkezésSorKezdet-J16,1)<>"",INDEX(Étkezés[],ÉtkezésVége-ÉtkezésSorKezdet-J16,7),NA())),NA()) -> 5.51 | G16: =IFERROR((IF(INDEX(Étkezés[],ÉtkezésVége-ÉtkezésSorKezdet-J16,1)<>"",INDEX(Étkezés[],ÉtkezésVége-ÉtkezésSorKezdet-J16,6),NA())),NA()) -> 8.81 | H16: =IFERROR((IF(INDEX(Étkezés[],ÉtkezésVége-ÉtkezésSorKezdet-J16,1)<>"",INDEX(Étkezés[],ÉtkezésVége-ÉtkezésSorKezdet-J16,5),NA())),NA()) -> 12.36 | I16: =IFERROR((IF(INDEX(Étkezés[],ÉtkezésVége-ÉtkezésSorKezdet-J16,1)<>"",INDEX(Étkezés[],ÉtkezésVége-ÉtkezésSorKezdet-J16,4),NA())),NA()) -> 135 | J16: 1
D17: =IFERROR(IF(INDEX(Étkezés[],ÉtkezésVége-ÉtkezésSorKezdet-J17,1)<>"",INDEX(Étkezés[],ÉtkezésVége-ÉtkezésSorKezdet-J17,1),""),"") -> 2017-05-13 | E17: SZO | F17: =IFERROR((IF(INDEX(Étkezés[],ÉtkezésVége-ÉtkezésSorKezdet-J17,1)<>"",INDEX(Étkezés[],ÉtkezésVége-ÉtkezésSorKezdet-J17,7),NA())),NA()) -> 15 | G17: =IFERROR((IF(INDEX(Étkezés[],ÉtkezésVége-ÉtkezésSorKezdet-J17,1)<>"",INDEX(Étkezés[],ÉtkezésVége-ÉtkezésSorKezdet-J17,6),NA())),NA()) -> 5.43 | H17: =IFERROR((IF(INDEX(Étkezés[],ÉtkezésVége-ÉtkezésSorKezdet-J17,1)<>"",INDEX(Étkezés[],ÉtkezésVége-ÉtkezésSorKezdet-J17,5),NA())),NA()) -> 7 | I17: =IFERROR((IF(INDEX(Étkezés[],ÉtkezésVége-ÉtkezésSorKezdet-J17,1)<>"",INDEX(Étkezés[],ÉtkezésVége-ÉtkezésSorKezdet-J17,4),NA())),NA()) -> 184 | J17: 0
D18: =IFERROR(IF(INDEX(Étkezés[],ÉtkezésVége-ÉtkezésSorKezdet-J18,1)<>"",INDEX(Étkezés[],ÉtkezésVége-ÉtkezésSorKezdet-J18,1),""),"") -> 2017-05-15 | E18: H | F18: =IFERROR((IF(INDEX(Étkezés[],ÉtkezésVége-ÉtkezésSorKezdet-J18,1)<>"",INDEX(Étkezés[],ÉtkezésVége-ÉtkezésSorKezdet-J18,7),NA())),NA()) -> 21 | G18: =IFERROR((IF(INDEX(Étkezés[],ÉtkezésVége-ÉtkezésSorKezdet-J18,1)<>"",INDEX(Étkezés[],ÉtkezésVége-ÉtkezésSorKezdet-J18,6),NA())),NA()) -> 13.5 | H18: =IFERROR((IF(INDEX(Étkezés[],ÉtkezésVége-ÉtkezésSorKezdet-J18,1)<>"",INDEX(Étkezés[],ÉtkezésVége-ÉtkezésSorKezdet-J18,5),NA())),NA()) -> 62 | I18: =IFERROR((IF(INDEX(Étkezés[],ÉtkezésVége-ÉtkezésSorKezdet-J18,1)<>"",INDEX(Étkezés[],ÉtkezésVége-ÉtkezésSorKezdet-J18,4),NA())),NA()) -> 477 | J18: -1
B20: TESTMOZGÁS NAPLÓ DIAGRAM ADATOK
B22: Kezdő sor | C22: =ROW(Étkezés[[#Headers],[DÁTUM]])+1 -> 4 | D22: DÁTUM | E22: NAP | F22: IDŐTARTAM (PERC) | G22: ELÉGETETT KALÓRIA | H22: Szám
B23: Utolsó testmozgás bejegyzés | C23: =MATCH(9.99E+307,Testmozgás[DÁTUM])+TestmozgásSorKezdet-1 -> 20 | D23: =IFERROR(IF(INDEX(Testmozgás[],TestmozgásVége-TestmozgásSorKezdet-H23,1)<>"",INDEX(Testmozgás[],TestmozgásVége-TestmozgásSorKezdet-H23,1)),"") -> 2017-05-30 | E23: =UPPER(TEXT(D23,"AAA")) -> K | F23: =IFERROR((IF(INDEX(Testmozgás[],TestmozgásVége-TestmozgásSorKezdet-H23,1)<>"",INDEX(Testmozgás[],TestmozgásVége-TestmozgásSorKezdet-H23,2),0)),0) -> 20 | G23: =IFERROR((IF(INDEX(Testmozgás[],TestmozgásVége-TestmozgásSorKezdet-H23,2)<>"",INDEX(Testmozgás[],TestmozgásVége-TestmozgásSorKezdet-H23,3),0)),0) -> 195 | H23: -1
D24: =IFERROR(IF(INDEX(Testmozgás[],TestmozgásVége-TestmozgásSorKezdet-H24,1)<>"",INDEX(Testmozgás[],TestmozgásVége-TestmozgásSorKezdet-H24,1)),"") -> 2017-05-29 | E24: =UPPER(TEXT(D24,"AAA")) -> H | F24: =IFERROR((IF(INDEX(Testmozgás[],TestmozgásVége-TestmozgásSorKezdet-H24,1)<>"",INDEX(Testmozgás[],TestmozgásVége-TestmozgásSorKezdet-H24,2),0)),0) -> 25 | G24: =IFERROR((IF(INDEX(Testmozgás[],TestmozgásVége-TestmozgásSorKezdet-H24,2)<>"",INDEX(Testmozgás[],TestmozgásVége-TestmozgásSorKezdet-H24,3),0)),0) -> 265 | H24: 0
D25: =IFERROR(IF(INDEX(Testmozgás[],TestmozgásVége-TestmozgásSorKezdet-H25,1)<>"",INDEX(Testmozgás[],TestmozgásVége-TestmozgásSorKezdet-H25,1)),"") -> 2017-05-28 | E25: V | F25: =IFERROR((IF(INDEX(Testmozgás[],TestmozgásVége-TestmozgásSorKezdet-H25,1)<>"",INDEX(Testmozgás[],TestmozgásVége-TestmozgásSorKezdet-H25,2),0)),0) -> 40 | G25: =IFERROR((IF(INDEX(Testmozgás[],TestmozgásVége-TestmozgásSorKezdet-H25,2)<>"",INDEX(Testmozgás[],TestmozgásVége-TestmozgásSorKezdet-H25,3),0)),0) -> 290 | H25: 1
D26: =IFERROR(IF(INDEX(Testmozgás[],TestmozgásVége-TestmozgásSorKezdet-H26,1)<>"",INDEX(Testmozgás[],TestmozgásVége-TestmozgásSorKezdet-H26,1)),"") -> 2017-05-27 | E26: SZO | F26: =IFERROR((IF(INDEX(Testmozgás[],TestmozgásVége-TestmozgásSorKezdet-H26,1)<>"",INDEX(Testmozgás[],TestmozgásVége-TestmozgásSorKezdet-H26,2),0)),0) -> 35 | G26: =IFERROR((IF(INDEX(Testmozgás[],TestmozgásVége-TestmozgásSorKezdet-H26,2)<>"",INDEX(Testmozgás[],TestmozgásVége-TestmozgásSorKezdet-H26,3),0)),0) -> 320 | H26: 2
D27: =IFERROR(IF(INDEX(Testmozgás[],TestmozgásVége-TestmozgásSorKezdet-H27,1)<>"",INDEX(Testmozgás[],TestmozgásVége-TestmozgásSorKezdet-H27,1)),"") -> 2017-05-26 | E27: P | F27: =IFERROR((IF(INDEX(Testmozgás[],TestmozgásVége-TestmozgásSorKezdet-H27,1)<>"",INDEX(Testmozgás[],TestmozgásVége-TestmozgásSorKezdet-H27,2),0)),0) -> 45 | G27: =IFERROR((IF(INDEX(Testmozgás[],TestmozgásVége-TestmozgásSorKezdet-H27,2)<>"",INDEX(Testmozgás[],TestmozgásVége-TestmozgásSorKezdet-H27,3),0)),0) -> 350 | H27: 3
D28: =IFERROR(IF(INDEX(Testmozgás[],TestmozgásVége-TestmozgásSorKezdet-H28,1)<>"",INDEX(Testmozgás[],TestmozgásVége-TestmozgásSorKezdet-H28,1)),"") -> 2017-05-25 | E28: CS | F28: =IFERROR((IF(INDEX(Testmozgás[],TestmozgásVége-TestmozgásSorKezdet-H28,1)<>"",INDEX(Testmozgás[],TestmozgásVége-TestmozgásSorKezdet-H28,2),0)),0) -> 20 | G28: =IFERROR((IF(INDEX(Testmozgás[],TestmozgásVége-TestmozgásSorKezdet-H28,2)<>"",INDEX(Testmozgás[],TestmozgásVége-TestmozgásSorKezdet-H28,3),0)),0) -> 295 | H28: 4
D29: =IFERROR(IF(INDEX(Testmozgás[],TestmozgásVége-TestmozgásSorKezdet-H29,1)<>"",INDEX(Testmozgás[],TestmozgásVége-TestmozgásSorKezdet-H29,1)),"") -> 2017-05-24 | E29: SZE | F29: =IFERROR((IF(INDEX(Testmozgás[],TestmozgásVége-TestmozgásSorKezdet-H29,1)<>"",INDEX(Testmozgás[],TestmozgásVége-TestmozgásSorKezdet-H29,2),0)),0) -> 40 | G29: =IFERROR((IF(INDEX(Testmozgás[],TestmozgásVége-TestmozgásSorKezdet-H29,2)<>"",INDEX(Testmozgás[],TestmozgásVége-TestmozgásSorKezdet-H29,3),0)),0) -> 270 | H29: 5
D30: =IFERROR(IF(INDEX(Testmozgás[],TestmozgásVége-TestmozgásSorKezdet-H30,1)<>"",INDEX(Testmozgás[],TestmozgásVége-TestmozgásSorKezdet-H30,1)),"") -> 2017-05-23 | E30: K | F30: =IFERROR((IF(INDEX(Testmozgás[],TestmozgásVége-TestmozgásSorKezdet-H30,1)<>"",INDEX(Testmozgás[],TestmozgásVége-TestmozgásSorKezdet-H30,2),0)),0) -> 45 | G30: =IFERROR((IF(INDEX(Testmozgás[],TestmozgásVége-TestmozgásSorKezdet-H30,2)<>"",INDEX(Testmozgás[],TestmozgásVége-TestmozgásSorKezdet-H30,3),0)),0) -> 325 | H30: 6
D31: =IFERROR(IF(INDEX(Testmozgás[],TestmozgásVége-TestmozgásSorKezdet-H31,1)<>"",INDEX(Testmozgás[],TestmozgásVége-TestmozgásSorKezdet-H31,1)),"") -> 2017-05-22 | E31: H | F31: =IFERROR((IF(INDEX(Testmozgás[],TestmozgásVége-TestmozgásSorKezdet-H31,1)<>"",INDEX(Testmozgás[],TestmozgásVége-TestmozgásSorKezdet-H31,2),0)),0) -> 40 | G31: =IFERROR((IF(INDEX(Testmozgás[],TestmozgásVége-TestmozgásSorKezdet-H31,2)<>"",INDEX(Testmozgás[],TestmozgásVége-TestmozgásSorKezdet-H31,3),0)),0) -> 175 | H31: 7
D32: =IFERROR(IF(INDEX(Testmozgás[],TestmozgásVége-TestmozgásSorKezdet-H32,1)<>"",INDEX(Testmozgás[],TestmozgásVége-TestmozgásSorKezdet-H32,1)),"") -> 2017-05-21 | E32: V | F32: =IFERROR((IF(INDEX(Testmozgás[],TestmozgásVége-TestmozgásSorKezdet-H32,1)<>"",INDEX(Testmozgás[],TestmozgásVége-TestmozgásSorKezdet-H32,2),0)),0) -> 30 | G32: =IFERROR((IF(INDEX(Testmozgás[],TestmozgásVége-TestmozgásSorKezdet-H32,2)<>"",INDEX(Testmozgás[],TestmozgásVége-TestmozgásSorKezdet-H32,3),0)),0) -> 335 | H32: 8
D33: =IFERROR(IF(INDEX(Testmozgás[],TestmozgásVége-TestmozgásSorKezdet-H33,1)<>"",INDEX(Testmozgás[],TestmozgásVége-TestmozgásSorKezdet-H33,1)),"") -> 2017-05-20 | E33: SZO | F33: =IFERROR((IF(INDEX(Testmozgás[],TestmozgásVége-TestmozgásSorKezdet-H33,1)<>"",INDEX(Testmozgás[],TestmozgásVége-TestmozgásSorKezdet-H33,2),0)),0) -> 40 | G33: =IFERROR((IF(INDEX(Testmozgás[],TestmozgásVége-TestmozgásSorKezdet-H33,2)<>"",INDEX(Testmozgás[],TestmozgásVége-TestmozgásSorKezdet-H33,3),0)),0) -> 205 | H33: 9
D34: =IFERROR(IF(INDEX(Testmozgás[],TestmozgásVége-TestmozgásSorKezdet-H34,1)<>"",INDEX(Testmozgás[],TestmozgásVége-TestmozgásSorKezdet-H34,1)),"") -> 2017-05-19 | E34: P | F34: =IFERROR((IF(INDEX(Testmozgás[],TestmozgásVége-TestmozgásSorKezdet-H34,1)<>"",INDEX(Testmozgás[],TestmozgásVége-TestmozgásSorKezdet-H34,2),0)),0) -> 20 | G34: =IFERROR((IF(INDEX(Testmozgás[],TestmozgásVége-TestmozgásSorKezdet-H34,2)<>"",INDEX(Testmozgás[],TestmozgásVége-TestmozgásSorKezdet-H34,3),0)),0) -> 285 | H34: 10
D35: =IFERROR(IF(INDEX(Testmozgás[],TestmozgásVége-TestmozgásSorKezdet-H35,1)<>"",INDEX(Testmozgás[],TestmozgásVége-TestmozgásSorKezdet-H35,1)),"") -> 2017-05-18 | E35: CS | F35: =IFERROR((IF(INDEX(Testmozgás[],TestmozgásVége-TestmozgásSorKezdet-H35,1)<>"",INDEX(Testmozgás[],TestmozgásVége-TestmozgásSorKezdet-H35,2),0)),0) -> 25 | G35: =IFERROR((IF(INDEX(Testmozgás[],TestmozgásVége-TestmozgásSorKezdet-H35,2)<>"",INDEX(Testmozgás[],TestmozgásVége-TestmozgásSorKezdet-H35,3),0)),0) -> 125 | H35: 11
D36: =IFERROR(IF(INDEX(Testmozgás[],TestmozgásVége-TestmozgásSorKezdet-H36,1)<>"",INDEX(Testmozgás[],TestmozgásVége-TestmozgásSorKezdet-H36,1)),"") -> 2017-05-17 | E36: SZE | F36: =IFERROR((IF(INDEX(Testmozgás[],TestmozgásVége-TestmozgásSorKezdet-H36,1)<>"",INDEX(Testmozgás[],TestmozgásVége-TestmozgásSorKezdet-H36,2),0)),0) -> 30 | G36: =IFERROR((IF(INDEX(Testmozgás[],TestmozgásVége-TestmozgásSorKezdet-H36,2)<>"",INDEX(Testmozgás[],TestmozgásVége-TestmozgásSorKezdet-H36,3),0)),0) -> 150 | H36: 12
